Workbook

Sheet анализ (hidden)

Sheet Загальний ввод
A19: № | B19: Свердловина | C19: Початок експлуатації приладу | F19: Кінець експлуатації приладу | I19: Час експлуатації, год | J19: Час циркуляції, год | K19: Інтервал роботи, м | L19: Відмітка про проведення ремонту | M19: Примітки(дата, вид роботи) | N19: Циркуляція | O19: Час нижче ротора | P19: Механічні пульсатори | R19: НОБТ 203мм | U19: НОБТ 171,5 мм | X19: НОБТ 127 мм
C20: Дата | D20: Час, год | E20: Глибина, м | F20: Дата | G20: Час, год | H20: Глибина, м | I20: =SUM(I21:I38) -> 160.2930556 | J20: =IF(SUM(J21:J38)>0,SUM(J21:J38),0) -> 86.20555556 | K20: =SUM(K21:K38) -> 2518.3 | P20: Пульсатор СР0551 | Q20: Пульсатор СР0552 | R20: NMDC 203001 | S20: NMDC 203002 | T20: NMDC 203003 | U20: NMDC 1338 | V20: NMDC 1339 | W20: NMDC 1341 | X20: NMDC 127001 | Y20: NMDC 127002 | Z20: NMDC 127003
A21: 1 | B21: 300 Опішня | C21: 2018-10-03 | D21: 01:30:00 | E21: 3188.9 | F21: 2018-10-13 | G21: 08:00:00 | H21: 3314.8 | I21: =IF(F21>0,(F21+G21)-(C21+D21)," ") -> 10.27083333 | J21: 5.279166667 | K21: =IF(H21>0,H21-E21," ") -> 125.9 | Q21: 1 | T21: 1
A22: 2 | B22: 525 Кегичівка | C22: 2018-10-16 | D22: 08:18:00 | E22: 2055.4 | F22: 2018-10-25 | G22: 04:00:00 | H22: 2163.5 | I22: 8.820833333 | J22: 4.763888889 | K22: =IF(H22>0,H22-E22," ") -> 108.1 | Q22: 1
A23: 3 | B23: 33 Краснокутська | C23: 2018-11-28 | D23: 08:00:00 | E23: 3545 | F23: 2018-12-13 | G23: 12:45:00 | H23: 3623.1 | I23: 15.19791667 | J23: 8.743055556 | K23: =IF(H23>0,H23-E23," ") -> 78.1 | L23: Сервіс | M23: Проводили сервіс, замінили полипак смолл, ризинки в незадовільному стані, а саме, якісь дубові, тим самим вони пропустили невелику кількість бруду, на роботу пульсатора це ніяким чином не вплинуло. Сервіс провили при напрацюванні 450:52 годни циркуляції | N23: 11.20833333 | O23: 15.07638889 | Q23: 1 | S23: 1 | T23: 1
A24: 4 | B24: 22 Зах Борисівська | C24: 2019-01-04 | D24: 16:00:00 | E24: 926 | Q24: 1
A25: 7 | B25: 26 Червоноярська | C25: 2018-06-16 | D25: 03:00:00 | E25: 1080 | F25: 2018-06-22 | G25: 10:00:00 | H25: 1333.8 | I25: =IF(F25>0,(F25+G25)-(C25+D25)," ") -> 6.291666667 | J25: 4.625 | K25: =IF(H25>0,H25-E25," ") -> 253.8 | N25: 4.625 | O25: 6.291666667 | S25: 1 | T25: 1
A26: 8 | B26: 117 Медведівка | C26: 2018-06-29 | D26: 12:30:00 | E26: 1120.6 | F26: 2018-07-07 | G26: 05:00:00 | H26: 1458.5 | I26: 7.6875 | J26: 3.638888889 | K26: =IF(H26>0,H26-E26," ") -> 337.9 | L26: Сервіс | M26: Порушення цілісності мембрани сервоклапана, выкревлений вал сервоклапана | N26: 3.638888889 | O26: 7.6875 | S26: 1 | T26: 1
A27: 9 | K27: =IF(H27>0,H27-E27," ") -> 
A28: 1 | B28: 117 Медведівка | C28: 2018-07-18 | D28: 04:20:00 | E28: 2080 | F28: 2018-07-22 | G28: 12:30:00 | H28: 2247 | I28: =IF(F28>0,(F28+G28)-(C28+D28)," ") -> 4.340277778 | J28: 1.84375 | K28: 167 | N28: 1.84375 | O28: 3.180555556 | S28: 1 | T28: 1
A29: 2 | B29: 85 сх.Медведівка | C29: 2018-07-30 | D29: 11:35:00 | E29: 1774 | F29: 2018-08-05 | G29: 12:00:00 | H29: 2008.7 | I29: 6.017361111 | J29: 3.104166667 | K29: 234.7 | N29: 3.104166667 | O29: 5.395833333 | S29: 1 | T29: 1
B30: 73 Зах.Соснівська | C30: 2018-08-13 | D30: 16:30:00 | E30: 3430 | F30: 2018-09-01 | G30: 08:00:00 | H30: 3660 | I30: =IF(F30>0,F30-C30," ") -> 19 | J30: 10.89791667 | K30: =IF(H30>0,H30-E30," ") -> 230 | N30: 10.89791667 | O30: 17.22916667 | U30: 1 | V30: 1
B31: 300 Опішня | C31: 2018-09-16 | D31: 09:30:00 | E31: 3095 | F31: 2018-10-13 | G31: 08:00:00 | H31: 3314.8 | I31: 27 | J31: 11.78125 | K31: 219.8 | N31: 11.78125 | O31: 22.24305556 | S31: 1 | T31: 1
B32: 525 Кегичівка | C32: 2018-10-16 | D32: 08:18:00 | E32: 2055.4 | F32: 2018-10-25 | G32: 04:00:00 | H32: 2163.5 | I32: 9 | J32: 4.763888889 | K32: 108.1 | N32: 4.763888889 | O32: 9.125 | S32: 1 | T32: 1
B33: 33 Краснокутська | C33: 2018-11-28 | D33: 05:00:00 | E33: 3545 | F33: 2018-12-17 | G33: 18:00:00 | H33: 3679.3 | I33: =IF(F33>0,F33-C33," ") -> 19 | J33: 11.12152778 | K33: 134.3 | L33: Сервіс | M33: Сервіс ролл тесту проводили більш менш з меншими похибками біля прачечной на вході ПВБР | N33: 11.20833333 | O33: 15.07638889 | S33: 1 | T33: 1
B34: 22 Зах Борисівська | C34: 2019-01-04 | D34: 16:00:00 | E34: 926
B35: 117Медведівка | C35: 2018-10-20 | D35: 08:00:00 | E35: 3380 | F35: 2018-10-29 | G35: 08:00:00 | H35: 3521.7 | I35: =IF(F35>0,(F35+G35)-(C35+D35)," ") -> 9 | J35: 5.770833333 | K35: 141.7 | N35: 5.770833333 | O35: 8.083333333 | U35: 1 | V35: 1
B36: 160 Гадяч | C36: 2018-11-03 | D36: 08:00:00 | E36: 3073 | F36: 2018-11-14 | G36: 00:00:00 | H36: 3296 | I36: 10.66666667 | J36: 6.648611111 | K36: 223 | N36: 6.648611111 | O36: 9.895833333 | V36: 1 | W36: 1
B37: 50 Абазівка | C37: 2018-11-24 | D37: 08:00:00 | E37: 4005.6 | F37: 2018-12-02 | G37: 08:00:00 | H37: 4161.5 | I37: 8 | J37: 3.223611111 | K37: 155.9 | M37: 05-12-18 , переповнення пом'яті, зтирання пам'яті. | N37: 3.223611111 | O37: 10.1875 | V37: 1 | W37: 1
B39: РОБОТИ з 01.01.2019 р.
B40: 410 Біляївська | C40: 2019-01-06 | D40: 08:30:00 | E40: 3400.7 | I40: =IF(F40>0,(F40+G40)-(C40+D40)," ") ->  | K40: =IF(H40>0,H40-E40," ") ->  | V40: 1 | W40: 1
B41: 22 Зах Борисівська | C41: 2019-01-04 | D41: 16:00:00 | E41: 926 | S41: 1 | T41: 1

Sheet NMDC
B1: NMDC 203 | G1: NMDC 171 | L1: NMDC 127
B2: НОБТ | C2: Дифектоскопія | D2: Інтервал робіт | E2: Час Н.Р. | F2: Циркуляція | G2: НОБТ | H2: Дифектоскопія | I2: Інтервал робіт | J2: Час Н.Р. | K2: Циркуляція | L2: НОБТ | M2: Дифектоскопія | N2: Інтервал робіт | O2: Час Н.Р. | P2: Циркуляція
B3: NMDC 203 | C3: 25 | F3: 41.66666667 | G3: NMDC 171 | H3: 25 | K3: 41.66666667 | L3: NMDC 127 | M3: 25 | P3: 41.66666667
B4: NMDC 203001 | C4: =C3-SUMIF(INDEX(B11:B1000,IF(ISNA(MATCH("дифектоскопія203001",V11:V1000,)),1,SUMPRODUCT(MAX((V11:V1000="дифектоскопія203001")*ROW(M11:M1000)))-10)):B1000,B12,INDEX(M11:M1000,IF(ISNA(MATCH("дифектоскопія203001",V11:V1000,)),1,SUMPRODUCT(MAX((V11:V1000="дифектоскопія203001")*ROW(M11:M1000)))-10)):M1000) -> 25 | D4: =SUMIF(B11:B63,B13,M11:M63) -> 0 | E4: =SUMIF(B11:B63,B13,M11:M63) -> 0 | F4: =M10 -> 41.66666667 | G4: NMDC 1338 | H4: =H3-SUMIF(INDEX(B11:B1000,IF(ISNA(MATCH("дифектоскопія1338",W11:W1000,)),1,SUMPRODUCT(MAX((W11:W1000="дифектоскопія1338")*ROW(J11:J1000)))-10)):B1000,B12,INDEX(J11:J1000,IF(ISNA(MATCH("дифектоскопія1338",W11:W1000,)),1,SUMPRODUCT(MAX((W11:W1000="дифектоскопія1338")*ROW(J11:J1000)))-2)):J1000) -> 25 | I4: =SUMIF(B11:B63,B13,J11:J63) -> 371.7 | J4: =SUMIF(B11:B63,B12,J11:J63) -> 16.66875 | K4: =J10 -> 35.89583333 | L4: NMDC 127001 | M4: =M3-SUMIF(INDEX(B11:B1000,IF(ISNA(MATCH("дифектоскопія127001",X11:X1000,)),1,SUMPRODUCT(MAX((X11:X1000="дифектоскопія127001")*ROW(P11:P1000)))-10)):B1000,B12,INDEX(P11:P1000,IF(ISNA(MATCH("дифектоскопія127001",X11:X1000,)),1,SUMPRODUCT(MAX((X11:X1000="дифектоскопія127001")*ROW(P11:P1000)))-2)):P1000) -> 25 | N4: =SUMIF(B11:B63,B13,P11:P63) -> 0 | O4: =SUMIF(B11:B63,B14,P11:P63) -> 0 | P4: =P10 -> 41.66666667
B5: NMDC 203002 | C5: =C3-SUMIF(INDEX(B11:B1000,IF(ISNA(MATCH("дифектоскопія203002",V11:V1000,)),1,SUMPRODUCT(MAX((V11:V1000="дифектоскопія203002")*ROW(N11:N1000)))-10)):B1000,B12,INDEX(N11:N55,IF(ISNA(MATCH("дифектоскопія203002",V11:V1000,)),1,SUMPRODUCT(MAX((V11:V1000="дифектоскопія203002")*ROW(N11:N1000)))-10)):N1000) -> 13.79166667 | D5: =SUMIF(B11:B63,B13,N11:N63) -> 1455.6 | E5: =SUMIF(B11:B63,B14,N11:N63) -> 69 | F5: =N10 -> 30.45833333 | G5: NMDC 1339 | H5: =H3-SUMIF(INDEX(B11:B1000,IF(ISNA(MATCH("дифектоскопія1339",W11:W1000,)),1,SUMPRODUCT(MAX((W11:W1000="дифектоскопія1339")*ROW(K11:K1000)))-10)):B1000,B12,INDEX(K11:K1000,IF(ISNA(MATCH("дифектоскопія1339",W11:W1000,)),1,SUMPRODUCT(MAX((W11:W1000="дифектоскопія1339")*ROW(K11:K1000)))-2)):K1000) -> 15.12777778 | I5: =SUMIF(B11:B63,B13,K11:K63) -> 750.6 | J5: =SUMIF(B11:B63,B12,K11:K63) -> 26.54097222 | K5: =K10 -> 26.02361111 | L5: NMDC 127002 | M5: =M3-SUMIF(INDEX(B11:B1000,IF(ISNA(MATCH("дифектоскопія127002",X11:X1000,)),1,SUMPRODUCT(MAX((X11:X1000="дифектоскопія127002")*ROW(Q11:Q1000)))-10)):B1000,B12,INDEX(Q11:Q1000,IF(ISNA(MATCH("дифектоскопія127002",X11:X1000,)),1,SUMPRODUCT(MAX((X11:X1000="дифектоскопія127002")*ROW(Q11:Q1000)))-2)):Q1000) -> 25 | N5: =SUMIF(B11:B63,B13,Q11:Q63) -> 0 | O5: =SUMIF(B11:B63,B14,Q11:Q63) -> 0 | P5: =Q10 -> 41.66666667
B6: NMDC 203003 | C6: =C3-SUMIF(INDEX(B11:B1000,IF(ISNA(MATCH("дифектоскопія203003",V11:V1000,)),1,SUMPRODUCT(MAX((V11:V1000="дифектоскопія203003")*ROW(O11:O1000)))-10)):B1000,B12,INDEX(O11:O1000,IF(ISNA(MATCH("дифектоскопія203003",V11:V1000,)),1,SUMPRODUCT(MAX((V11:V1000="дифектоскопія203003")*ROW(O11:O1000)))-2)):O1000) -> 13.79166667 | D6: =SUMIF(B11:B63,B13,O11:O63) -> 1455.6 | E6: =SUMIF(B11:B63,B14,O11:O63) -> 69 | F6: =O10 -> 30.45833333 | G6: NMDC 1341 | H6: =H3-SUMIF(INDEX(B11:B1000,IF(ISNA(MATCH("дифектоскопія1341",W11:W1000,)),1,SUMPRODUCT(MAX((W11:W1000="дифектоскопія1341")*ROW(L11:L1000)))-10)):B1000,B12,INDEX(L11:L1000,IF(ISNA(MATCH("дифектоскопія1341",W11:W1000,)),1,SUMPRODUCT(MAX((W11:W1000="дифектоскопія1341")*ROW(L11:L1000)))-2)):L1000) -> 15.12777778 | I6: =SUMIF(B11:B63,B13,L11:L63) -> 378.9 | J6: =SUMIF(B11:B63,B12,L11:L63) -> 9.872222222 | K6: =L10 -> 31.79444444 | L6: NMDC 127003 | M6: =M3-SUMIF(INDEX(B11:B1000,IF(ISNA(MATCH("дифектоскопія127003",X11:X1000,)),1,SUMPRODUCT(MAX((X11:X1000="дифектоскопія127003")*ROW(R11:R1000)))-10)):B1000,B12,INDEX(R11:R1000,IF(ISNA(MATCH("дифектоскопія127003",X11:X1000,)),1,SUMPRODUCT(MAX((X11:X1000="дифектоскопія127003")*ROW(R11:R1000)))-2)):R1000) -> 25 | N6: =SUMIF(B11:B63,B13,R11:R63) -> 0 | O6: =SUMIF(B11:B63,B14,R11:R63) -> 0 | P6: =R10 -> 41.66666667
K7: 41.66666667 | N7: 41.66666667 | Q7: 41.66666667
A8: N п/п | B8: Свердловина | C8: Дата початку експлуатації | F8: Дата кінця експлуатації | I8: Інтервал роботи, м | K8: NMDC 171 | N8: NMDC 203 | Q8: NMDC 127 | S8: сервіс NMDC | T8: сервіс NMDC | U8: сервіс NMDC | V8: Дифектоскопія NMDC | W8: Дифектоскопія NMDC | X8: Дифектоскопія NMDC
C9: Дата | D9: Час, год | E9: Глибина, м | F9: Дата | G9: Час, год | H9: Глибина, м | I9: =SUM(I10:I63) -> 2206.2 | J9: NMDC 1338 | K9: NMDC 1339 | L9: NMDC 1341 | M9: NMDC 203001 | N9: NMDC 203002 | O9: NMDC 203003 | P9: NMDC 127001 | Q9: NMDC 127002 | R9: NMDC 127003 | S9: 203 | T9: 171 | U9: 127 | V9: 203 | W9: 171 | X9: 127
B10: Заг.напр.циркуляція | J10: =K7-SUMIF(INDEX(B11:B1000,IF(ISNA(MATCH("сервіс1338",T11:T1000,)),1,SUMPRODUCT(MAX((T11:T1000="сервіс1338")*ROW(J11:J1000)))-10)):B1000,B12,INDEX(J11:J1000,IF(ISNA(MATCH("сервіс1338",T11:T1000,)),1,SUMPRODUCT(MAX((T11:T1000="сервіс1338")*ROW(J11:J1000)))-10)):J1000) -> 35.89583333 | K10: =K7-SUMIF(INDEX(B11:B1000,IF(ISNA(MATCH("сервіс1339",T11:T1000,)),1,SUMPRODUCT(MAX((T11:T1000="сервіс1339")*ROW(K11:K1000)))-10)):B1000,B12,INDEX(K11:K1000,IF(ISNA(MATCH("сервіс1339",T11:T1000,)),1,SUMPRODUCT(MAX((T11:T1000="сервіс1339")*ROW(K11:K1000)))-10)):K1000) -> 26.02361111 | L10: =K7-SUMIF(INDEX(B11:B1000,IF(ISNA(MATCH("сервіс1341",T11:T1000,)),1,SUMPRODUCT(MAX((T11:T1000="сервіс1341")*ROW(L11:L1000)))-10)):B1000,B12,INDEX(L11:L1000,IF(ISNA(MATCH("сервіс1341",T11:T1000,)),1,SUMPRODUCT(MAX((T11:T1000="сервіс1341")*ROW(L11:L1000)))-10)):L1000) -> 31.79444444 | M10: =N7-SUMIF(INDEX(B11:B1000,IF(ISNA(MATCH("сервіс203001",S11:S1000,)),1,SUMPRODUCT(MAX((S11:S1000="сервіс203001")*ROW(M11:M1000)))-10)):B1000,B12,INDEX(M11:M1000,IF(ISNA(MATCH("сервіс203001",S11:S1000,)),1,SUMPRODUCT(MAX((S11:S1000="сервіс203001")*ROW(M11:M1000)))-10)):M1000) -> 41.66666667 | N10: =N7-SUMIF(INDEX(B11:B1000,IF(ISNA(MATCH("сервіс203002",S11:S1000,)),1,SUMPRODUCT(MAX((S11:S1000="сервіс203002")*ROW(N11:N1000)))-10)):B1000,B12,INDEX(N11:N1000,IF(ISNA(MATCH("сервіс203002",S11:S1000,)),1,SUMPRODUCT(MAX((S11:S1000="сервіс203002")*ROW(N11:N1000)))-10)):N1000) -> 30.45833333 | O10: =N7-SUMIF(INDEX(B11:B1000,IF(ISNA(MATCH("сервіс203003",S11:S1000,)),1,SUMPRODUCT(MAX((S11:S1000="сервіс203003")*ROW(O11:O1000)))-10)):B1000,B12,INDEX(O11:O1000,IF(ISNA(MATCH("сервіс203003",S11:S1000,)),1,SUMPRODUCT(MAX((S11:S1000="сервіс203003")*ROW(O11:O1000)))-10)):O1000) -> 30.45833333 | P10: =Q7-SUMIF(INDEX(B11:B1000,IF(ISNA(MATCH("сервіс127001",U11:U1000,)),1,SUMPRODUCT(MAX((U11:U1000="сервіс127001")*ROW(P11:P1000)))-10)):B1000,B12,INDEX(P11:P1000,IF(ISNA(MATCH("сервіс127001",U11:U1000,)),1,SUMPRODUCT(MAX((U11:U1000="сервіс127001")*ROW(P11:P1000)))-10)):P1000) -> 41.66666667 | Q10: =Q7-SUMIF(INDEX(B11:B1000,IF(ISNA(MATCH("сервіс127002",U11:U1000,)),1,SUMPRODUCT(MAX((U11:U1000="сервіс127002")*ROW(Q11:Q1000)))-10)):B1000,B12,INDEX(Q11:Q1000,IF(ISNA(MATCH("сервіс127002",U11:U1000,)),1,SUMPRODUCT(MAX((U11:U1000="сервіс127002")*ROW(Q11:Q1000)))-10)):Q1000) -> 41.66666667 | R10: =Q7-SUMIF(INDEX(B11:B1000,IF(ISNA(MATCH("сервіс127003",U11:U1000,)),1,SUMPRODUCT(MAX((U11:U1000="сервіс127003")*ROW(R11:R1000)))-10)):B1000,B12,INDEX(R11:R1000,IF(ISNA(MATCH("сервіс127003",U11:U1000,)),1,SUMPRODUCT(MAX((U11:U1000="сервіс127003")*ROW(R11:R1000)))-10)):R1000) -> 41.66666667
A11: 1 | B11: 26 Червоноярська | C11: 2018-06-16 | D11: 03:00:00 | E11: 1080 | F11: 2018-06-22 | G11: 10:00:00 | H11: 1333.8 | I11: =H11-E11 -> 253.8
B12: Циркуляція | M12: =IF('Загальний ввод'!R25<1,0,'Загальний ввод'!N25) -> 0 | N12: =IF('Загальний ввод'!S25<1,0,'Загальний ввод'!N25) -> 4.625 | O12: =IF('Загальний ввод'!T25<1,0,'Загальний ввод'!N25) -> 4.625
B13: Інтервал роботи | M13: =IF('Загальний ввод'!R25<1,0,'Загальний ввод'!K25) -> 0 | N13: =IF('Загальний ввод'!S25<1,0,'Загальний ввод'!K25) -> 253.8 | O13: =IF('Загальний ввод'!T25<1,0,'Загальний ввод'!K25) -> 253.8
B14: Час нижче ротора | M14: =IF('Загальний ввод'!R25<1,0,'Загальний ввод'!O25) -> 0 | N14: =IF('Загальний ввод'!S25<1,0,'Загальний ввод'!O25) -> 6.291666667 | O14: =IF('Загальний ввод'!T25<1,0,'Загальний ввод'!O25) -> 6.291666667
A15: 2 | B15: 117 Медведівка | C15: 2018-06-29 | D15: 12:30:00 | E15: 1120.6 | F15: 2018-07-07 | G15: 05:00:00 | H15: 1458.5 | I15: 337.9
B16: Циркуляція | M16: =IF('Загальний ввод'!R26<1,0,'Загальний ввод'!N26) -> 0 | N16: =IF('Загальний ввод'!S26<1,0,'Загальний ввод'!N29) -> 3.104166667 | O16: =IF('Загальний ввод'!T29<1,0,'Загальний ввод'!N26) -> 3.638888889
B17: Інтервал роботи | M17: =IF('Загальний ввод'!R26<1,0,'Загальний ввод'!K26) -> 0 | N17: =IF('Загальний ввод'!S26<1,0,'Загальний ввод'!K26) -> 337.9 | O17: =IF('Загальний ввод'!T26<1,0,'Загальний ввод'!K26) -> 337.9
B18: Час нижче ротора | M18: =IF('Загальний ввод'!R26<1,0,'Загальний ввод'!O26) -> 0 | N18: =IF('Загальний ввод'!S26<1,0,'Загальний ввод'!O26) -> 7.6875 | O18: =IF('Загальний ввод'!T26<1,0,'Загальний ввод'!O26) -> 7.6875
A19: 3 | B19: 117 Медведівка | C19: 2018-07-18 | D19: 04:20:00 | E19: 2080 | F19: 2018-07-22 | G19: 12:30:00 | H19: 2247 | I19: 167
B20: Циркуляція | M20: =IF('Загальний ввод'!R28<1,0,'Загальний ввод'!N28) -> 0 | N20: =IF('Загальний ввод'!S28<1,0,'Загальний ввод'!N28) -> 1.84375 | O20: =IF('Загальний ввод'!#REF!<1,0,'Загальний ввод'!#REF!) -> 
B21: Інтервал роботи | M21: =IF('Загальний ввод'!R28<1,0,'Загальний ввод'!K28) -> 0 | N21: =IF('Загальний ввод'!S28<1,0,'Загальний ввод'!K28) -> 167 | O21: =IF('Загальний ввод'!T28<1,0,'Загальний ввод'!K28) -> 167
B22: Час нижче ротора | M22: =IF('Загальний ввод'!R28<1,0,'Загальний ввод'!O28) -> 0 | N22: =IF('Загальний ввод'!S28<1,0,'Загальний ввод'!O28) -> 3.180555556 | O22: =IF('Загальний ввод'!T28<1,0,'Загальний ввод'!O28) -> 3.180555556
A23: 4 | B23: 85 сх.Медведівка | C23: 2018-07-30 | D23: 11:35:00 | E23: 1774 | F23: 2018-08-05 | G23: 12:00:00 | H23: 2008.7 | I23: 234.7
B24: Циркуляція | M24: =IF('Загальний ввод'!#REF!<1,0,'Загальний ввод'!N29) ->  | N24: =IF('Загальний ввод'!S29<1,0,'Загальний ввод'!N29) -> 3.104166667 | O24: =IF('Загальний ввод'!T29<1,0,'Загальний ввод'!N29) -> 3.104166667
B25: Інтервал роботи | M25: =IF('Загальний ввод'!R29<1,0,'Загальний ввод'!K29) -> 0 | N25: =IF('Загальний ввод'!S29<1,0,'Загальний ввод'!K29) -> 234.7 | O25: =IF('Загальний ввод'!T29<1,0,'Загальний ввод'!K29) -> 234.7
B26: Час нижче ротора | M26: =IF('Загальний ввод'!R29<1,0,'Загальний ввод'!O29) -> 0 | N26: =IF('Загальний ввод'!S29<1,0,'Загальний ввод'!O29) -> 5.395833333 | O26: =IF('Загальний ввод'!T29<1,0,'Загальний ввод'!O29) -> 5.395833333
A27: 5 | B27: 73 Зах.Соснівська | C27: 2018-08-13 | D27: 16:30:00 | E27: 3430 | F27: 2018-09-01 | G27: 08:00:00 | H27: 3660 | I27: 230
B28: Циркуляція | J28: =IF('Загальний ввод'!U30<1,0,'Загальний ввод'!N30) -> 10.89791667 | K28: =IF('Загальний ввод'!V30<1,0,'Загальний ввод'!N30) -> 10.89791667 | L28: =IF('Загальний ввод'!W30<1,0,'Загальний ввод'!N30) -> 0
B29: Інтервал роботи | J29: =IF('Загальний ввод'!U30<1,0,'Загальний ввод'!K30) -> 230 | K29: =IF('Загальний ввод'!V30<1,0,'Загальний ввод'!K30) -> 230 | L29: =IF('Загальний ввод'!W30<1,0,'Загальний ввод'!K30) -> 0 | T29: сервіс1338
B30: Час нижче ротора | J30: =IF('Загальний ввод'!U30<1,0,'Загальний ввод'!O30) -> 17.22916667 | K30: =IF('Загальний ввод'!V30<1,0,'Загальний ввод'!O30) -> 17.22916667 | L30: =IF('Загальний ввод'!W30<1,0,'Загальний ввод'!O30) -> 0 | T30: сервіс1339
A31: 6 | B31: 300 Опішня | C31: 2018-09-16 | D31: 09:30:00 | E31: 3095 | F31: 2018-10-13 | G31: 08:00:00 | H31: 3314.8 | I31: 219.8 | T31: сервіс1341
B32: Циркуляція | M32: =IF('Загальний ввод'!R31<1,0,'Загальний ввод'!N31) -> 0 | N32: =IF('Загальний ввод'!S31<1,0,'Загальний ввод'!N31) -> 11.78125 | O32: =IF('Загальний ввод'!T31<1,0,'Загальний ввод'!N31) -> 11.78125
B33: Інтервал роботи | M33: =IF('Загальний ввод'!R31<1,0,'Загальний ввод'!K31) -> 0 | N33: =IF('Загальний ввод'!S31<1,0,'Загальний ввод'!K31) -> 219.8 | O33: =IF('Загальний ввод'!T31<1,0,'Загальний ввод'!K31) -> 219.8 | W33: дифектоскопія1338
B34: Час нижче ротора | M34: =IF('Загальний ввод'!R31<1,0,'Загальний ввод'!O31) -> 0 | N34: =IF('Загальний ввод'!S31<1,0,'Загальний ввод'!O31) -> 22.24305556 | O34: =IF('Загальний ввод'!T31<1,0,'Загальний ввод'!O31) -> 22.24305556 | W34: дифектоскопія1339
A35: 7 | B35: 525 Кегичівка | C35: 2018-10-16 | D35: 08:18:00 | E35: 2055.4 | F35: 2018-10-25 | G35: 04:00:00 | H35: 2163.5 | I35: =H35-E35 -> 108.1
B36: Циркуляція | M36: =IF('Загальний ввод'!R32<1,0,'Загальний ввод'!N32) -> 0 | N36: =IF('Загальний ввод'!S32<1,0,'Загальний ввод'!N32) -> 4.763888889 | O36: =IF('Загальний ввод'!T32<1,0,'Загальний ввод'!N32) -> 4.763888889 | S36: сервіс203001 | V36: дифектоскопія203003
B37: Інтервал роботи | M37: =IF('Загальний ввод'!R32<1,0,'Загальний ввод'!K32) -> 0 | N37: =IF('Загальний ввод'!S32<1,0,'Загальний ввод'!K32) -> 108.1 | O37: =IF('Загальний ввод'!T32<1,0,'Загальний ввод'!K32) -> 108.1 | S37: сервіс203002 | V37: дифектоскопія203001
B38: Час нижче ротора | M38: =IF('Загальний ввод'!R32<1,0,'Загальний ввод'!O32) -> 0 | N38: =IF('Загальний ввод'!S32<1,0,'Загальний ввод'!O32) -> 9.125 | O38: =IF('Загальний ввод'!T32<1,0,'Загальний ввод'!O32) -> 9.125 | S38: сервіс203003 | V38: дифектоскопія203002
A39: 8 | B39: 117Медведівка | C39: 2018-10-20 | D39: 08:00:00 | E39: 3380 | F39: 2018-10-29 | G39: 08:00:00 | H39: 3521.7 | I39: =H39-E39 -> 141.7
A40: 9 | B40: Циркуляція | J40: =IF('Загальний ввод'!U35<1,0,'Загальний ввод'!N35) -> 5.770833333 | K40: =IF('Загальний ввод'!V35<1,0,'Загальний ввод'!N35) -> 5.770833333 | L40: =IF('Загальний ввод'!W35<1,0,'Загальний ввод'!N35) -> 0
B41: Інтервал роботи | J41: =IF('Загальний ввод'!U35<1,0,'Загальний ввод'!K35) -> 141.7 | K41: =IF('Загальний ввод'!V35<1,0,'Загальний ввод'!K35) -> 141.7 | L41: =IF('Загальний ввод'!W35<1,0,'Загальний ввод'!K35) -> 0
B42: Час нижче ротора | J42: =IF('Загальний ввод'!U35<1,0,'Загальний ввод'!O35) -> 8.083333333 | K42: =IF('Загальний ввод'!V35<1,0,'Загальний ввод'!O35) -> 8.083333333 | L42: =IF('Загальний ввод'!W35<1,0,'Загальний ввод'!O35) -> 0
A43: 9 | B43: 160 Гадяч | C43: 2018-11-03 | D43: 08:00:00 | E43: 3073 | F43: 2018-11-14 | G43: 00:00:00 | H43: 3296 | I43: =H43-E43 -> 223
A44: 45 | B44: Циркуляція | J44: =IF('Загальний ввод'!U36<1,0,'Загальний ввод'!N36) -> 0 | K44: =IF('Загальний ввод'!V36<1,0,'Загальний ввод'!N36) -> 6.648611111 | L44: =IF('Загальний ввод'!W36<1,0,'Загальний ввод'!N36) -> 6.648611111
B45: Інтервал роботи | J45: =IF('Загальний ввод'!U36<1,0,'Загальний ввод'!K36) -> 0 | K45: =IF('Загальний ввод'!V36<1,0,'Загальний ввод'!K36) -> 223 | L45: =IF('Загальний ввод'!W36<1,0,'Загальний ввод'!K36) -> 223
B46: Час нижче ротора | J46: =IF('Загальний ввод'!U36<1,0,'Загальний ввод'!O36) -> 0 | K46: =IF('Загальний ввод'!V36<1,0,'Загальний ввод'!O36) -> 9.895833333 | L46: =IF('Загальний ввод'!W36<1,0,'Загальний ввод'!O36) -> 9.895833333
A47: 10 | B47: 33 Краснокутська | C47: 2018-11-28 | D47: 05:00:00 | E47: 3545 | F47: 2018-12-17 | G47: 18:00:00 | H47: 3679.3 | I47: =H47-E47 -> 134.3
B48: Циркуляція | M48: =IF('Загальний ввод'!R33<1,0,'Загальний ввод'!N33) -> 0 | N48: =IF('Загальний ввод'!S33<1,0,'Загальний ввод'!N33) -> 11.20833333 | O48: =IF('Загальний ввод'!T33<1,0,'Загальний ввод'!N33) -> 11.20833333
B49: Інтервал роботи | M49: =IF('Загальний ввод'!R33<1,0,'Загальний ввод'!K33) -> 0 | N49: =IF('Загальний ввод'!S33<1,0,'Загальний ввод'!K33) -> 134.3 | O49: =IF('Загальний ввод'!T33<1,0,'Загальний ввод'!K33) -> 134.3
B50: Час нижче ротора | M50: =IF('Загальний ввод'!R33<1,0,'Загальний ввод'!O33) -> 0 | N50: =IF('Загальний ввод'!S33<1,0,'Загальний ввод'!O33) -> 15.07638889 | O50: =IF('Загальний ввод'!T33<1,0,'Загальний ввод'!O33) -> 15.07638889
A51: 11 | B51: 50 Абазівка | C51: 2018-11-24 | D51: 08:00:00 | E51: 4005.6 | F51: 2018-12-02 | G51: 08:00:00 | H51: 4161.5 | I51: =H51-E51 -> 155.9
B52: Циркуляція | J52: =IF('Загальний ввод'!U37<1,0,'Загальний ввод'!N37) -> 0 | K52: =IF('Загальний ввод'!V37<1,0,'Загальний ввод'!N37) -> 3.223611111 | L52: =IF('Загальний ввод'!W37<1,0,'Загальний ввод'!N37) -> 3.223611111
B53: Інтервал роботи | J53: =IF('Загальний ввод'!U37<1,0,'Загальний ввод'!K37) -> 0 | K53: =IF('Загальний ввод'!V37<1,0,'Загальний ввод'!K37) -> 155.9 | L53: =IF('Загальний ввод'!W37<1,0,'Загальний ввод'!K37) -> 155.9
B54: Час нижче ротора | J54: =IF('Загальний ввод'!U37<1,0,'Загальний ввод'!O37) -> 0 | K54: =IF('Загальний ввод'!V37<1,0,'Загальний ввод'!O37) -> 10.1875 | L54: =IF('Загальний ввод'!W37<1,0,'Загальний ввод'!O37) -> 10.1875
A55: =IF('Загальний ввод'!R41=1,'Загальний ввод'!B41,IF('Загальний ввод'!S41=1,'Загальний ввод'!B41,IF('Загальний ввод'!T41=1,'Загальний ввод'!B41,IF('Загальний ввод'!U41=1,'Загальний ввод'!B41,IF('Загальний ввод'!V41=1,'Загальний ввод'!B41,IF('Загальний ввод'!W41=1,'Загальний ввод'!B41,IF('Загальний ввод'!X41=1,'Загальний ввод'!B41,IF('Загальний ввод'!Y41=1,'Загальний ввод'!B41,IF('Загальний ввод'!Z41=1,'Загальний ввод'!И103,))))))))) -> 22 Зах Борисівська | B55: 22 Зах Борисівська | C55: 2019-01-04 | D55: 16:00:00 | E55: 926
B56: Циркуляція
B57: Інтервал роботи
B58: Час нижче ротора
A59: =IF('Загальний ввод'!R40=1,'Загальний ввод'!B40,IF('Загальний ввод'!S40=1,'Загальний ввод'!B40,IF('Загальний ввод'!T40=1,'Загальний ввод'!B40,IF('Загальний ввод'!U40=1,'Загальний ввод'!B40,IF('Загальний ввод'!V40=1,'Загальний ввод'!B40,IF('Загальний ввод'!W40=1,'Загальний ввод'!B40,IF('Загальний ввод'!X40=1,'Загальний ввод'!B40,IF('Загальний ввод'!Y40=1,'Загальний ввод'!B40,IF('Загальний ввод'!Z40=1,'Загальний ввод'!И102,))))))))) -> 410 Біляївська | B59: 410 Біляївська | C59: 2019-01-06 | D59: 08:30:00 | E59: 3400.7
B60: Циркуляція
B61: Інтервал роботи
B62: Час нижче ротора
B65: =IF('Загальний ввод'!#REF!<1,0,'Загальний ввод'!#REF!) ->  | C65: =IF('Загальний ввод'!#REF!<1,0,'Загальний ввод'!#REF!) ->  | D65: =IF('Загальний ввод'!#REF!<1,0,'Загальний ввод'!#REF!) ->  | E65: =IF('Загальний ввод'!#REF!<1,0,'Загальний ввод'!#REF!) ->  | F65: =IF('Загальний ввод'!#REF!<1,0,'Загальний ввод'!#REF!) ->  | G65: =IF('Загальний ввод'!#REF!<1,0,'Загальний ввод'!#REF!) ->  | H65: =IF('Загальний ввод'!#REF!<1,0,'Загальний ввод'!#REF!) ->  | I65: =IF('Загальний ввод'!#REF!<1,0,'Загальний ввод'!#REF!) ->  | M65: =IF('Загальний ввод'!#REF!<1,0,'Загальний ввод'!#REF!) ->  | N65: =IF('Загальний ввод'!#REF!<1,0,'Загальний ввод'!#REF!) ->  | O65: =IF('Загальний ввод'!#REF!<1,0,'Загальний ввод'!#REF!) -> 
B69: =IF('Загальний ввод'!R21=1,'Загальний ввод'!B21,IF('Загальний ввод'!S21=1,'Загальний ввод'!B21,IF('Загальний ввод'!T21=1,'Загальний ввод'!B21,))) -> 300 Опішня
B70: =IF('Загальний ввод'!R22<1,0,IF('Загальний ввод'!S22<1,0,IF('Загальний ввод'!T22<1,0,'Загальний ввод'!B22))) -> 0
B71: =IF('Загальний ввод'!R23<1,0,IF('Загальний ввод'!S23<1,0,IF('Загальний ввод'!T23<1,0,'Загальний ввод'!B23))) -> 0
B72: =IF('Загальний ввод'!R24<1,0,IF('Загальний ввод'!S24<1,0,IF('Загальний ввод'!T24<1,0,'Загальний ввод'!B24))) -> 0
B73: =IF('Загальний ввод'!#REF!<1,0,IF('Загальний ввод'!#REF!<1,0,IF('Загальний ввод'!#REF!<1,0,'Загальний ввод'!#REF!))) -> 
B74: =IF('Загальний ввод'!#REF!<1,0,IF('Загальний ввод'!#REF!<1,0,IF('Загальний ввод'!#REF!<1,0,'Загальний ввод'!#REF!))) -> 
B75: =IF('Загальний ввод'!#REF!<1,0,IF('Загальний ввод'!#REF!<1,0,IF('Загальний ввод'!#REF!<1,0,'Загальний ввод'!#REF!))) -> 
B76: =IF('Загальний ввод'!#REF!<1,0,IF('Загальний ввод'!#REF!<1,0,IF('Загальний ввод'!#REF!<1,0,'Загальний ввод'!#REF!))) -> 
B77: =IF('Загальний ввод'!#REF!<1,0,IF('Загальний ввод'!#REF!<1,0,IF('Загальний ввод'!#REF!<1,0,'Загальний ввод'!#REF!))) -> 
B78: =IF('Загальний ввод'!#REF!<1,0,IF('Загальний ввод'!#REF!<1,0,IF('Загальний ввод'!#REF!<1,0,'Загальний ввод'!#REF!))) -> 
B79: =IF('Загальний ввод'!#REF!<1,0,IF('Загальний ввод'!#REF!<1,0,IF('Загальний ввод'!#REF!<1,0,'Загальний ввод'!#REF!))) -> 
B80: =IF('Загальний ввод'!#REF!<1,0,IF('Загальний ввод'!#REF!<1,0,IF('Загальний ввод'!#REF!<1,0,'Загальний ввод'!#REF!))) -> 
B81: =IF('Загальний ввод'!#REF!<1,0,IF('Загальний ввод'!#REF!<1,0,IF('Загальний ввод'!#REF!<1,0,'Загальний ввод'!#REF!))) -> 
B82: =IF('Загальний ввод'!#REF!<1,0,IF('Загальний ввод'!#REF!<1,0,IF('Загальний ввод'!#REF!<1,0,'Загальний ввод'!#REF!))) -> 
B83: =IF('Загальний ввод'!#REF!<1,0,IF('Загальний ввод'!#REF!<1,0,IF('Загальний ввод'!#REF!<1,0,'Загальний ввод'!#REF!))) -> 
B84: =IF('Загальний ввод'!#REF!<1,0,IF('Загальний ввод'!#REF!<1,0,IF('Загальний ввод'!#REF!<1,0,'Загальний ввод'!#REF!))) -> 
B85: =IF('Загальний ввод'!#REF!<1,0,IF('Загальний ввод'!#REF!<1,0,IF('Загальний ввод'!#REF!<1,0,'Загальний ввод'!#REF!))) -> 
B86: =IF('Загальний ввод'!#REF!<1,0,IF('Загальний ввод'!#REF!<1,0,IF('Загальний ввод'!#REF!<1,0,'Загальний ввод'!#REF!))) -> 
B87: =IF('Загальний ввод'!#REF!<1,0,IF('Загальний ввод'!#REF!<1,0,IF('Загальний ввод'!#REF!<1,0,'Загальний ввод'!#REF!))) -> 
B88: =IF('Загальний ввод'!#REF!<1,0,IF('Загальний ввод'!#REF!<1,0,IF('Загальний ввод'!#REF!<1,0,'Загальний ввод'!#REF!))) -> 
B89: =IF('Загальний ввод'!R25<1,0,IF('Загальний ввод'!S25<1,0,IF('Загальний ввод'!T25<1,0,'Загальний ввод'!B25))) -> 0
B90: =IF('Загальний ввод'!R26<1,0,IF('Загальний ввод'!S26<1,0,IF('Загальний ввод'!T26<1,0,'Загальний ввод'!B26))) -> 0
B91: =IF('Загальний ввод'!R27<1,0,IF('Загальний ввод'!S27<1,0,IF('Загальний ввод'!T27<1,0,'Загальний ввод'!B27))) -> 0
B92: =IF('Загальний ввод'!R28<1,0,IF('Загальний ввод'!S28<1,0,IF('Загальний ввод'!T28<1,0,'Загальний ввод'!B28))) -> 0
B93: =IF('Загальний ввод'!R29<1,0,IF('Загальний ввод'!S29<1,0,IF('Загальний ввод'!T29<1,0,'Загальний ввод'!B29))) -> 0
B94: =IF('Загальний ввод'!#REF!<1,0,IF('Загальний ввод'!#REF!<1,0,IF('Загальний ввод'!#REF!<1,0,'Загальний ввод'!#REF!))) -> 
B95: =IF('Загальний ввод'!#REF!<1,0,IF('Загальний ввод'!#REF!<1,0,IF('Загальний ввод'!#REF!<1,0,'Загальний ввод'!#REF!))) -> 
B96: =IF('Загальний ввод'!#REF!<1,0,IF('Загальний ввод'!#REF!<1,0,IF('Загальний ввод'!#REF!<1,0,'Загальний ввод'!#REF!))) -> 
B97: =IF('Загальний ввод'!#REF!<1,0,IF('Загальний ввод'!#REF!<1,0,IF('Загальний ввод'!#REF!<1,0,'Загальний ввод'!#REF!))) -> 
B98: =IF('Загальний ввод'!#REF!<1,0,IF('Загальний ввод'!#REF!<1,0,IF('Загальний ввод'!#REF!<1,0,'Загальний ввод'!#REF!))) -> 
B99: =IF('Загальний ввод'!#REF!<1,0,IF('Загальний ввод'!#REF!<1,0,IF('Загальний ввод'!#REF!<1,0,'Загальний ввод'!#REF!))) -> 
B100: =IF('Загальний ввод'!#REF!<1,0,IF('Загальний ввод'!#REF!<1,0,IF('Загальний ввод'!#REF!<1,0,'Загальний ввод'!#REF!))) -> 
B101: =IF('Загальний ввод'!#REF!<1,0,IF('Загальний ввод'!#REF!<1,0,IF('Загальний ввод'!#REF!<1,0,'Загальний ввод'!#REF!))) -> 
B102: =IF('Загальний ввод'!#REF!<1,0,IF('Загальний ввод'!#REF!<1,0,IF('Загальний ввод'!#REF!<1,0,'Загальний ввод'!#REF!))) -> 
B103: =IF('Загальний ввод'!#REF!<1,0,IF('Загальний ввод'!#REF!<1,0,IF('Загальний ввод'!#REF!<1,0,'Загальний ввод'!#REF!))) -> 
B104: =IF('Загальний ввод'!#REF!<1,0,IF('Загальний ввод'!#REF!<1,0,IF('Загальний ввод'!#REF!<1,0,'Загальний ввод'!#REF!))) -> 
B105: =IF('Загальний ввод'!#REF!<1,0,IF('Загальний ввод'!#REF!<1,0,IF('Загальний ввод'!#REF!<1,0,'Загальний ввод'!#REF!))) -> 
B106: =IF('Загальний ввод'!#REF!<1,0,IF('Загальний ввод'!#REF!<1,0,IF('Загальний ввод'!#REF!<1,0,'Загальний ввод'!#REF!))) -> 
B107: =IF('Загальний ввод'!#REF!<1,0,IF('Загальний ввод'!#REF!<1,0,IF('Загальний ввод'!#REF!<1,0,'Загальний ввод'!#REF!))) -> 
B108: =IF('Загальний ввод'!#REF!<1,0,IF('Загальний ввод'!#REF!<1,0,IF('Загальний ввод'!#REF!<1,0,'Загальний ввод'!#REF!))) -> 
B109: =IF('Загальний ввод'!#REF!<1,0,IF('Загальний ввод'!#REF!<1,0,IF('Загальний ввод'!#REF!<1,0,'Загальний ввод'!#REF!))) -> 
B110: =IF('Загальний ввод'!R30<1,0,IF('Загальний ввод'!S30<1,0,IF('Загальний ввод'!T30<1,0,'Загальний ввод'!B30))) -> 0
B111: =IF('Загальний ввод'!R31<1,0,IF('Загальний ввод'!S31<1,0,IF('Загальний ввод'!T31<1,0,'Загальний ввод'!B31))) -> 0
B112: =IF('Загальний ввод'!R32<1,0,IF('Загальний ввод'!S32<1,0,IF('Загальний ввод'!T32<1,0,'Загальний ввод'!B32))) -> 0
B113: =IF('Загальний ввод'!R33<1,0,IF('Загальний ввод'!S33<1,0,IF('Загальний ввод'!T33<1,0,'Загальний ввод'!B33))) -> 0
B114: =IF('Загальний ввод'!R34<1,0,IF('Загальний ввод'!S34<1,0,IF('Загальний ввод'!T34<1,0,'Загальний ввод'!B34))) -> 0
B115: =IF('Загальний ввод'!R35<1,0,IF('Загальний ввод'!S35<1,0,IF('Загальний ввод'!T35<1,0,'Загальний ввод'!B35))) -> 0
B116: =IF('Загальний ввод'!R36<1,0,IF('Загальний ввод'!S36<1,0,IF('Загальний ввод'!T36<1,0,'Загальний ввод'!B36))) -> 0
B117: =IF('Загальний ввод'!R37<1,0,IF('Загальний ввод'!S37<1,0,IF('Загальний ввод'!T37<1,0,'Загальний ввод'!B37))) -> 0
B118: =IF('Загальний ввод'!R38<1,0,IF('Загальний ввод'!S38<1,0,IF('Загальний ввод'!T38<1,0,'Загальний ввод'!B38))) -> 0
B119: =IF('Загальний ввод'!#REF!<1,0,IF('Загальний ввод'!#REF!<1,0,IF('Загальний ввод'!#REF!<1,0,'Загальний ввод'!#REF!))) -> 
B120: =IF('Загальний ввод'!#REF!<1,0,IF('Загальний ввод'!#REF!<1,0,IF('Загальний ввод'!#REF!<1,0,'Загальний ввод'!#REF!))) -> 
B121: =IF('Загальний ввод'!#REF!<1,0,IF('Загальний ввод'!#REF!<1,0,IF('Загальний ввод'!#REF!<1,0,'Загальний ввод'!#REF!))) -> 
B122: =IF('Загальний ввод'!#REF!<1,0,IF('Загальний ввод'!#REF!<1,0,IF('Загальний ввод'!#REF!<1,0,'Загальний ввод'!#REF!))) -> 
B123: =IF('Загальний ввод'!#REF!<1,0,IF('Загальний ввод'!#REF!<1,0,IF('Загальний ввод'!#REF!<1,0,'Загальний ввод'!#REF!))) -> 
B124: =IF('Загальний ввод'!#REF!<1,0,IF('Загальний ввод'!#REF!<1,0,IF('Загальний ввод'!#REF!<1,0,'Загальний ввод'!#REF!))) -> 
B125: =IF('Загальний ввод'!#REF!<1,0,IF('Загальний ввод'!#REF!<1,0,IF('Загальний ввод'!#REF!<1,0,'Загальний ввод'!#REF!))) -> 
B126: =IF('Загальний ввод'!#REF!<1,0,IF('Загальний ввод'!#REF!<1,0,IF('Загальний ввод'!#REF!<1,0,'Загальний ввод'!#REF!))) -> 
B127: =IF('Загальний ввод'!#REF!<1,0,IF('Загальний ввод'!#REF!<1,0,IF('Загальний ввод'!#REF!<1,0,'Загальний ввод'!#REF!))) -> 
B128: =IF('Загальний ввод'!#REF!<1,0,IF('Загальний ввод'!#REF!<1,0,IF('Загальний ввод'!#REF!<1,0,'Загальний ввод'!#REF!))) -> 
B129: =IF('Загальний ввод'!#REF!<1,0,IF('Загальний ввод'!#REF!<1,0,IF('Загальний ввод'!#REF!<1,0,'Загальний ввод'!#REF!))) -> 
B130: =IF('Загальний ввод'!#REF!<1,0,IF('Загальний ввод'!#REF!<1,0,IF('Загальний ввод'!#REF!<1,0,'Загальний ввод'!#REF!))) -> 
B131: =IF('Загальний ввод'!#REF!<1,0,IF('Загальний ввод'!#REF!<1,0,IF('Загальний ввод'!#REF!<1,0,'Загальний ввод'!#REF!))) -> 
B132: =IF('Загальний ввод'!#REF!<1,0,IF('Загальний ввод'!#REF!<1,0,IF('Загальний ввод'!#REF!<1,0,'Загальний ввод'!#REF!))) -> 
B133: =IF('Загальний ввод'!#REF!<1,0,IF('Загальний ввод'!#REF!<1,0,IF('Загальний ввод'!#REF!<1,0,'Загальний ввод'!#REF!))) -> 
B134: =IF('Загальний ввод'!#REF!<1,0,IF('Загальний ввод'!#REF!<1,0,IF('Загальний ввод'!#REF!<1,0,'Загальний ввод'!#REF!))) -> 
B135: =IF('Загальний ввод'!#REF!<1,0,IF('Загальний ввод'!#REF!<1,0,IF('Загальний ввод'!#REF!<1,0,'Загальний ввод'!#REF!))) -> 
B136: =IF('Загальний ввод'!#REF!<1,0,IF('Загальний ввод'!#REF!<1,0,IF('Загальний ввод'!#REF!<1,0,'Загальний ввод'!#REF!))) -> 
B137: =IF('Загальний ввод'!#REF!<1,0,IF('Загальний ввод'!#REF!<1,0,IF('Загальний ввод'!#REF!<1,0,'Загальний ввод'!#REF!))) -> 
B138: =IF('Загальний ввод'!#REF!<1,0,IF('Загальний ввод'!#REF!<1,0,IF('Загальний ввод'!#REF!<1,0,'Загальний ввод'!#REF!))) -> 
B139: =IF('Загальний ввод'!#REF!<1,0,IF('Загальний ввод'!#REF!<1,0,IF('Загальний ввод'!#REF!<1,0,'Загальний ввод'!#REF!))) -> 
B140: =IF('Загальний ввод'!#REF!<1,0,IF('Загальний ввод'!#REF!<1,0,IF('Загальний ввод'!#REF!<1,0,'Загальний ввод'!#REF!))) -> 
B141: =IF('Загальний ввод'!#REF!<1,0,IF('Загальний ввод'!#REF!<1,0,IF('Загальний ввод'!#REF!<1,0,'Загальний ввод'!#REF!))) -> 
B142: =IF('Загальний ввод'!#REF!<1,0,IF('Загальний ввод'!#REF!<1,0,IF('Загальний ввод'!#REF!<1,0,'Загальний ввод'!#REF!))) -> 
B143: =IF('Загальний ввод'!#REF!<1,0,IF('Загальний ввод'!#REF!<1,0,IF('Загальний ввод'!#REF!<1,0,'Загальний ввод'!#REF!))) -> 
B144: =IF('Загальний ввод'!R39<1,0,IF('Загальний ввод'!S39<1,0,IF('Загальний ввод'!T39<1,0,'Загальний ввод'!#REF!))) -> 0
B145: =IF('Загальний ввод'!R40<1,0,IF('Загальний ввод'!S40<1,0,IF('Загальний ввод'!T40<1,0,'Загальний ввод'!B40))) -> 0
B146: =IF('Загальний ввод'!R41<1,0,IF('Загальний ввод'!S41<1,0,IF('Загальний ввод'!T41<1,0,'Загальний ввод'!B41))) -> 0
B147: =IF('Загальний ввод'!R42<1,0,IF('Загальний ввод'!S42<1,0,IF('Загальний ввод'!T42<1,0,'Загальний ввод'!B42))) -> 0
B148: =IF('Загальний ввод'!R43<1,0,IF('Загальний ввод'!S43<1,0,IF('Загальний ввод'!T43<1,0,'Загальний ввод'!B43))) -> 0
B149: =IF('Загальний ввод'!R44<1,0,IF('Загальний ввод'!S44<1,0,IF('Загальний ввод'!T44<1,0,'Загальний ввод'!B44))) -> 0
B150: =IF('Загальний ввод'!R45<1,0,IF('Загальний ввод'!S45<1,0,IF('Загальний ввод'!T45<1,0,'Загальний ввод'!B45))) -> 0
B151: =IF('Загальний ввод'!R46<1,0,IF('Загальний ввод'!S46<1,0,IF('Загальний ввод'!T46<1,0,'Загальний ввод'!B46))) -> 0
B152: =IF('Загальний ввод'!R47<1,0,IF('Загальний ввод'!S47<1,0,IF('Загальний ввод'!T47<1,0,'Загальний ввод'!B47))) -> 0
B153: =IF('Загальний ввод'!R48<1,0,IF('Загальний ввод'!S48<1,0,IF('Загальний ввод'!T48<1,0,'Загальний ввод'!B48))) -> 0
B154: =IF('Загальний ввод'!R49<1,0,IF('Загальний ввод'!S49<1,0,IF('Загальний ввод'!T49<1,0,'Загальний ввод'!B49))) -> 0
B155: =IF('Загальний ввод'!R50<1,0,IF('Загальний ввод'!S50<1,0,IF('Загальний ввод'!T50<1,0,'Загальний ввод'!B50))) -> 0
B156: =IF('Загальний ввод'!R51<1,0,IF('Загальний ввод'!S51<1,0,IF('Загальний ввод'!T51<1,0,'Загальний ввод'!B51))) -> 0
B157: =IF('Загальний ввод'!R52<1,0,IF('Загальний ввод'!S52<1,0,IF('Загальний ввод'!T52<1,0,'Загальний ввод'!B52))) -> 0
B158: =IF('Загальний ввод'!R53<1,0,IF('Загальний ввод'!S53<1,0,IF('Загальний ввод'!T53<1,0,'Загальний ввод'!B53))) -> 0
B159: =IF('Загальний ввод'!R54<1,0,IF('Загальний ввод'!S54<1,0,IF('Загальний ввод'!T54<1,0,'Загальний ввод'!B54))) -> 0
B160: =IF('Загальний ввод'!R55<1,0,IF('Загальний ввод'!S55<1,0,IF('Загальний ввод'!T55<1,0,'Загальний ввод'!B55))) -> 0
B161: =IF('Загальний ввод'!R56<1,0,IF('Загальний ввод'!S56<1,0,IF('Загальний ввод'!T56<1,0,'Загальний ввод'!B56))) -> 0
B162: =IF('Загальний ввод'!R57<1,0,IF('Загальний ввод'!S57<1,0,IF('Загальний ввод'!T57<1,0,'Загальний ввод'!B57))) -> 0
B163: =IF('Загальний ввод'!R58<1,0,IF('Загальний ввод'!S58<1,0,IF('Загальний ввод'!T58<1,0,'Загальний ввод'!B58))) -> 0
B164: =IF('Загальний ввод'!R59<1,0,IF('Загальний ввод'!S59<1,0,IF('Загальний ввод'!T59<1,0,'Загальний ввод'!B59))) -> 0
B165: =IF('Загальний ввод'!R60<1,0,IF('Загальний ввод'!S60<1,0,IF('Загальний ввод'!T60<1,0,'Загальний ввод'!B60))) -> 0
B166: =IF('Загальний ввод'!R61<1,0,IF('Загальний ввод'!S61<1,0,IF('Загальний ввод'!T61<1,0,'Загальний ввод'!B61))) -> 0
B167: =IF('Загальний ввод'!R62<1,0,IF('Загальний ввод'!S62<1,0,IF('Загальний ввод'!T62<1,0,'Загальний ввод'!B62))) -> 0
B168: =IF('Загальний ввод'!R63<1,0,IF('Загальний ввод'!S63<1,0,IF('Загальний ввод'!T63<1,0,'Загальний ввод'!B63))) -> 0
B169: =IF('Загальний ввод'!R64<1,0,IF('Загальний ввод'!S64<1,0,IF('Загальний ввод'!T64<1,0,'Загальний ввод'!B64))) -> 0
B170: =IF('Загальний ввод'!R65<1,0,IF('Загальний ввод'!S65<1,0,IF('Загальний ввод'!T65<1,0,'Загальний ввод'!B65))) -> 0
B171: =IF('Загальний ввод'!R66<1,0,IF('Загальний ввод'!S66<1,0,IF('Загальний ввод'!T66<1,0,'Загальний ввод'!B66))) -> 0
B172: =IF('Загальний ввод'!R67<1,0,IF('Загальний ввод'!S67<1,0,IF('Загальний ввод'!T67<1,0,'Загальний ввод'!B67))) -> 0
B173: =IF('Загальний ввод'!R68<1,0,IF('Загальний ввод'!S68<1,0,IF('Загальний ввод'!T68<1,0,'Загальний ввод'!B68))) -> 0
B174: =IF('Загальний ввод'!R69<1,0,IF('Загальний ввод'!S69<1,0,IF('Загальний ввод'!T69<1,0,'Загальний ввод'!B69))) -> 0
B175: =IF('Загальний ввод'!R70<1,0,IF('Загальний ввод'!S70<1,0,IF('Загальний ввод'!T70<1,0,'Загальний ввод'!B70))) -> 0
B176: =IF('Загальний ввод'!R71<1,0,IF('Загальний ввод'!S71<1,0,IF('Загальний ввод'!T71<1,0,'Загальний ввод'!B71))) -> 0
B177: =IF('Загальний ввод'!R72<1,0,IF('Загальний ввод'!S72<1,0,IF('Загальний ввод'!T72<1,0,'Загальний ввод'!B72))) -> 0
B178: =IF('Загальний ввод'!R73<1,0,IF('Загальний ввод'!S73<1,0,IF('Загальний ввод'!T73<1,0,'Загальний ввод'!B73))) -> 0
B179: =IF('Загальний ввод'!R74<1,0,IF('Загальний ввод'!S74<1,0,IF('Загальний ввод'!T74<1,0,'Загальний ввод'!B74))) -> 0
B180: =IF('Загальний ввод'!R75<1,0,IF('Загальний ввод'!S75<1,0,IF('Загальний ввод'!T75<1,0,'Загальний ввод'!B75))) -> 0
B181: =IF('Загальний ввод'!R76<1,0,IF('Загальний ввод'!S76<1,0,IF('Загальний ввод'!T76<1,0,'Загальний ввод'!B76))) -> 0
B182: =IF('Загальний ввод'!R77<1,0,IF('Загальний ввод'!S77<1,0,IF('Загальний ввод'!T77<1,0,'Загальний ввод'!B77))) -> 0
B183: =IF('Загальний ввод'!R78<1,0,IF('Загальний ввод'!S78<1,0,IF('Загальний ввод'!T78<1,0,'Загальний ввод'!B78))) -> 0
B184: =IF('Загальний ввод'!R79<1,0,IF('Загальний ввод'!S79<1,0,IF('Загальний ввод'!T79<1,0,'Загальний ввод'!B79))) -> 0
B185: =IF('Загальний ввод'!R80<1,0,IF('Загальний ввод'!S80<1,0,IF('Загальний ввод'!T80<1,0,'Загальний ввод'!B80))) -> 0
B186: =IF('Загальний ввод'!R81<1,0,IF('Загальний ввод'!S81<1,0,IF('Загальний ввод'!T81<1,0,'Загальний ввод'!B81))) -> 0
B187: =IF('Загальний ввод'!R82<1,0,IF('Загальний ввод'!S82<1,0,IF('Загальний ввод'!T82<1,0,'Загальний ввод'!B82))) -> 0
B188: =IF('Загальний ввод'!R83<1,0,IF('Загальний ввод'!S83<1,0,IF('Загальний ввод'!T83<1,0,'Загальний ввод'!B83))) -> 0
B189: =IF('Загальний ввод'!R84<1,0,IF('Загальний ввод'!S84<1,0,IF('Загальний ввод'!T84<1,0,'Загальний ввод'!B84))) -> 0
B190: =IF('Загальний ввод'!R85<1,0,IF('Загальний ввод'!S85<1,0,IF('Загальний ввод'!T85<1,0,'Загальний ввод'!B85))) -> 0
B191: =IF('Загальний ввод'!R86<1,0,IF('Загальний ввод'!S86<1,0,IF('Загальний ввод'!T86<1,0,'Загальний ввод'!B86))) -> 0
B192: =IF('Загальний ввод'!R87<1,0,IF('Загальний ввод'!S87<1,0,IF('Загальний ввод'!T87<1,0,'Загальний ввод'!B87))) -> 0
B193: =IF('Загальний ввод'!R88<1,0,IF('Загальний ввод'!S88<1,0,IF('Загальний ввод'!T88<1,0,'Загальний ввод'!B88))) -> 0
B194: =IF('Загальний ввод'!R89<1,0,IF('Загальний ввод'!S89<1,0,IF('Загальний ввод'!T89<1,0,'Загальний ввод'!B89))) -> 0
B195: =IF('Загальний ввод'!R90<1,0,IF('Загальний ввод'!S90<1,0,IF('Загальний ввод'!T90<1,0,'Загальний ввод'!B90))) -> 0
B196: =IF('Загальний ввод'!R91<1,0,IF('Загальний ввод'!S91<1,0,IF('Загальний ввод'!T91<1,0,'Загальний ввод'!B91))) -> 0
B197: =IF('Загальний ввод'!R92<1,0,IF('Загальний ввод'!S92<1,0,IF('Загальний ввод'!T92<1,0,'Загальний ввод'!B92))) -> 0
B198: =IF('Загальний ввод'!R93<1,0,IF('Загальний ввод'!S93<1,0,IF('Загальний ввод'!T93<1,0,'Загальний ввод'!B93))) -> 0
B199: =IF('Загальний ввод'!R94<1,0,IF('Загальний ввод'!S94<1,0,IF('Загальний ввод'!T94<1,0,'Загальний ввод'!B94))) -> 0
B200: =IF('Загальний ввод'!R95<1,0,IF('Загальний ввод'!S95<1,0,IF('Загальний ввод'!T95<1,0,'Загальний ввод'!B95))) -> 0
B201: =IF('Загальний ввод'!R96<1,0,IF('Загальний ввод'!S96<1,0,IF('Загальний ввод'!T96<1,0,'Загальний ввод'!B96))) -> 0
B202: =IF('Загальний ввод'!R97<1,0,IF('Загальний ввод'!S97<1,0,IF('Загальний ввод'!T97<1,0,'Загальний ввод'!B97))) -> 0
B203: =IF('Загальний ввод'!R98<1,0,IF('Загальний ввод'!S98<1,0,IF('Загальний ввод'!T98<1,0,'Загальний ввод'!B98))) -> 0
B204: =IF('Загальний ввод'!R99<1,0,IF('Загальний ввод'!S99<1,0,IF('Загальний ввод'!T99<1,0,'Загальний ввод'!B99))) -> 0
B205: =IF('Загальний ввод'!R100<1,0,IF('Загальний ввод'!S100<1,0,IF('Загальний ввод'!T100<1,0,'Загальний ввод'!B100))) -> 0
... 132 more rows
